{"text_format":"1","workbook":"xlsx","n_sheets":4,"sheets":["Tablero","TD_Menu","Ajedrez","Idiomas"],"not_rendered":{"charts":0,"images":1,"macros":1,"external_links":0,"defined_names":20,"comments":0,"pivot_tables":2},"unopened":[],"bounds":{"document_bytes":16777216,"sheet_cells":100000,"rows_first":2000,"rows_last":500,"rows_between":2000,"halvings":0,"cell_chars":16384,"cell_head_chars":4096},"cells_cut":0,"cells_raw":0,"read":"whole","date_system":"1900"}

{"sheet":"Tablero","index":0,"n_rows":15,"n_cols":19,"rows_kept":15,"cut":false,"hidden":false,"merged":[[0,0,0,19],[13,2,13,13],[14,2,14,13],[1,3,1,16]]}
[{"$f":"Idiomas!A2","v":"Tablero de Ajedrez con Menús Interactivos"}]
[null,null,null,{"$f":"Idiomas!A3","v":"(Menús diseñados con Segmentaciones de datos)"}]
[null,null,null,null,null,null,null,null,null,null,"a","b","c","d","e","f","g","h"]
[null,null,null,null,null,null,null,null,null,8,"♜","♞","♝","♛","♚","♝","♞","♜",8]
[null,null,null,null,null,null,null,null,null,7,"♟","♟","♟","♟","♟","♟","♟","♟",7]
[null,null,null,null,null,null,null,null,null,6,null,null,null,null,null,null,null,null,6]
[null,null,null,null,null,null,null,null,null,5,null,null,null,null,null,null,null,null,5]
[null,null,null,null,null,null,null,null,null,4,null,null,null,null,null,null,null,null,4]
[null,null,null,null,null,null,null,null,null,3,null,null,null,null,null,null,null,null,3]
[null,null,null,null,null,null,null,null,null,2,"♙","♙","♙","♙","♙","♙","♙","♙",2]
[null,null,null,null,null,null,null,null,null,1,"♖","♘","♗","♕","♔","♗","♘","♖",1]
[null,null,null,null,null,null,null,null,null,null,"a","b","c","d","e","f","g","h"]
[]
["   BLOG",null,"https://pedrowave.blogspot.com/2020/06/desempleo-de-la-ue-con-banderas.html"]
["   COPYRIGHT",null,"https://creativecommons.org/licenses/by-nc-sa/3.0/deed.en"]

{"sheet":"TD_Menu","index":1,"n_rows":29,"n_cols":14,"rows_kept":29,"cut":false,"hidden":false,"merged":[]}
[]
[null,null,null,{"$f":"Idiomas!A11","v":"Menu núm"},{"$f":"MID(Rango_Menu,1,FIND(\".\",Rango_Menu)-1)","v":"3"}]
[]
[null,"Menu","3. Mover",null,"Menu",null,"Submenu","1","2","3","4","5","6","7"]
[null,null,null,null,{"$f":"ROW() - ROW($E$4) & \". \" & Idiomas!A12","v":"1. Fuente"},null,{"$f":"IF(ISERROR(MATCH(Rango_Menu,Rango_Submenus,0)),\"\",INDEX(TablaSubmenus[#All],ROW()-3,MATCH(Rango_Menu,Rango_Submenus,0)) & \"\")","v":"↖"},"Segoe UI Symbol","♔","↖",{"$f":"Idiomas!A7","v":"Iniciar"},null,{"$f":"TablaIdiomas[[#Headers],[Català]]","v":"Català"},{"$f":"Idiomas!A9","v":"SI"}]
[null,null,null,null,{"$f":"ROW() - ROW($E$4) & \". \" & Idiomas!A13","v":"2. Pieza"},null,{"$f":"IF(ISERROR(MATCH(Rango_Menu,Rango_Submenus,0)),\"\",INDEX(TablaSubmenus[#All],ROW()-3,MATCH(Rango_Menu,Rango_Submenus,0)) & \"\")","v":"↑"},"Times New Roman","♕","↑",{"$f":"Idiomas!A8","v":"Borrar"},null,{"$f":"TablaIdiomas[[#Headers],[Deutsche]]","v":"Deutsche"},{"$f":"Idiomas!A10","v":"NO"}]
[null,null,null,null,{"$f":"ROW() - ROW($E$4) & \". \" & Idiomas!A14","v":"3. Mover"},null,{"$f":"IF(ISERROR(MATCH(Rango_Menu,Rango_Submenus,0)),\"\",INDEX(TablaSubmenus[#All],ROW()-3,MATCH(Rango_Menu,Rango_Submenus,0)) & \"\")","v":"↗"},null,"♖","↗",null,null,{"$f":"TablaIdiomas[[#Headers],[English]]","v":"English"}]
[null,null,null,null,{"$f":"ROW() - ROW($E$4) & \". \" & Idiomas!A15","v":"4. Tablero"},null,{"$f":"IF(ISERROR(MATCH(Rango_Menu,Rango_Submenus,0)),\"\",INDEX(TablaSubmenus[#All],ROW()-3,MATCH(Rango_Menu,Rango_Submenus,0)) & \"\")","v":"←"},null,"♗","←",null,null,{"$f":"TablaIdiomas[[#Headers],[Español]]","v":"Español"}]
[null,null,null,null,{"$f":"ROW() - ROW($E$4) & \". \" & Idiomas!A16","v":"5. Copiar"},null,{"$f":"IF(ISERROR(MATCH(Rango_Menu,Rango_Submenus,0)),\"\",INDEX(TablaSubmenus[#All],ROW()-3,MATCH(Rango_Menu,Rango_Submenus,0)) & \"\")","v":"⃝"},null,"♘","⃝",null,null,{"$f":"TablaIdiomas[[#Headers],[Esperanto]]","v":"Esperanto"}]
[null,null,null,null,{"$f":"ROW() - ROW($E$4) & \". \" & Idiomas!A17","v":"6. Idioma"},null,{"$f":"IF(ISERROR(MATCH(Rango_Menu,Rango_Submenus,0)),\"\",INDEX(TablaSubmenus[#All],ROW()-3,MATCH(Rango_Menu,Rango_Submenus,0)) & \"\")","v":"→"},null,"♙","→",null,null,{"$f":"TablaIdiomas[[#Headers],[Euskal]]","v":"Euskal"}]
[null,null,null,null,{"$f":"ROW() - ROW($E$4) & \". \" & Idiomas!A18","v":"7. Ocultar Excel"},null,{"$f":"IF(ISERROR(MATCH(Rango_Menu,Rango_Submenus,0)),\"\",INDEX(TablaSubmenus[#All],ROW()-3,MATCH(Rango_Menu,Rango_Submenus,0)) & \"\")","v":"↙"},null,"♚","↙",null,null,{"$f":"TablaIdiomas[[#Headers],[Français]]","v":"Français"}]
[null,null,null,null,null,null,{"$f":"IF(ISERROR(MATCH(Rango_Menu,Rango_Submenus,0)),\"\",INDEX(TablaSubmenus[#All],ROW()-3,MATCH(Rango_Menu,Rango_Submenus,0)) & \"\")","v":"↓"},null,"♛","↓",null,null,{"$f":"TablaIdiomas[[#Headers],[Galego]]","v":"Galego"}]
[null,null,null,null,null,null,{"$f":"IF(ISERROR(MATCH(Rango_Menu,Rango_Submenus,0)),\"\",INDEX(TablaSubmenus[#All],ROW()-3,MATCH(Rango_Menu,Rango_Submenus,0)) & \"\")","v":"↘"},null,"♜","↘",null,null,{"$f":"TablaIdiomas[[#Headers],[Hrvatski]]","v":"Hrvatski"}]
[null,"Submenu","⃝",null,null,null,{"$f":"IF(ISERROR(MATCH(Rango_Menu,Rango_Submenus,0)),\"\",INDEX(TablaSubmenus[#All],ROW()-3,MATCH(Rango_Menu,Rango_Submenus,0)) & \"\")","v":""},null,"♝",null,null,null,{"$f":"TablaIdiomas[[#Headers],[Italiano]]","v":"Italiano"}]
[null,null,null,null,null,null,{"$f":"IF(ISERROR(MATCH(Rango_Menu,Rango_Submenus,0)),\"\",INDEX(TablaSubmenus[#All],ROW()-3,MATCH(Rango_Menu,Rango_Submenus,0)) & \"\")","v":""},null,"♞",null,null,null,{"$f":"TablaIdiomas[[#Headers],[Português]]","v":"Português"}]
[null,null,null,null,null,null,{"$f":"IF(ISERROR(MATCH(Rango_Menu,Rango_Submenus,0)),\"\",INDEX(TablaSubmenus[#All],ROW()-3,MATCH(Rango_Menu,Rango_Submenus,0)) & \"\")","v":""},null,"♟",null,null,null,{"$f":"TablaIdiomas[[#Headers],[Română]]","v":"Română"}]
[]
[]
[]
[]
[]
[]
[]
[]
[]
[null,null,null,null,null,null,{"$f":"Rango_Menu","v":"3. Mover"},{"$f":"INDEX(TablaMenu[Menu],TablaSubmenus[[#Headers],[1]])","v":"1. Fuente"},{"$f":"INDEX(TablaMenu[Menu],TablaSubmenus[[#Headers],[2]])","v":"2. Pieza"},{"$f":"INDEX(TablaMenu[Menu],TablaSubmenus[[#Headers],[3]])","v":"3. Mover"},{"$f":"INDEX(TablaMenu[Menu],TablaSubmenus[[#Headers],[4]])","v":"4. Tablero"},{"$f":"INDEX(TablaMenu[Menu],TablaSubmenus[[#Headers],[5]])","v":"5. Copiar"},{"$f":"INDEX(TablaMenu[Menu],TablaSubmenus[[#Headers],[6]])","v":"6. Idioma"},{"$f":"INDEX(TablaMenu[Menu],TablaSubmenus[[#Headers],[7]])","v":"7. Ocultar Excel"}]
[null,null,null,null,null,{"$f":"Idiomas!A4","v":"Tope"},{"$f":"IF(ISERROR(MATCH(Rango_Menu,Rango_Submenus,0)),0,--INDEX($H$27:$N$27,1,MATCH(Rango_Menu,Rango_Submenus,0)))","v":138.09291491170569},{"$f":"TopMenu()","v":76.400001525878906},{"$f":"H27+RowHeightMenu()+2.5","v":107.2464582187923},{"$f":"I27+RowHeightMenu()+2.5","v":138.09291491170569},168.93937160461908,199.78582829753248,230.63228499044587,261.47874168335926]
[null,null,null,null,null,{"$f":"Idiomas!A5","v":"Filas"},{"$f":"COUNTIF(TablaSubmenu[Submenu],\"?*\")","v":9},{"$f":"COUNTIF(TablaSubmenus[1],\"?*\")","v":2},{"$f":"COUNTIF(TablaSubmenus[2],\"?*\")","v":12},{"$f":"COUNTIF(TablaSubmenus[3],\"?*\")","v":9},{"$f":"COUNTIF(TablaSubmenus[4],\"?*\")","v":2},{"$f":"COUNTIF(TablaSubmenus[5],\"?*\")","v":0},{"$f":"COUNTIF(TablaSubmenus[6],\"?*\")","v":12},{"$f":"COUNTIF(TablaSubmenus[7],\"?*\")","v":2}]
[null,null,null,null,null,{"$f":"Idiomas!A6","v":"Columnas"},{"$f":"IF(ISERROR(MATCH(Rango_Menu,Rango_Submenus,0)),0,--INDEX($H$29:$N$29,1,MATCH(Rango_Menu,Rango_Submenus,0)))","v":3},{"$f":"IF(H28<1,0,IF(H28<3,1,IF(H28<7,2,3)))","v":1},3,3,1,{"$f":"IF(L28<1,0,IF(L28<3,1,IF(L28<7,2,3)))","v":0},1,{"$f":"IF(N28<1,0,IF(N28<3,1,IF(N28<7,2,3)))","v":1}]

{"sheet":"Ajedrez","index":2,"n_rows":11,"n_cols":19,"rows_kept":11,"cut":false,"hidden":false,"merged":[[1,15,1,16],[1,17,1,18]]}
[]
[null,null,null,"a","b","c","d","e","f","g","h",null,null,null,null,"Segoe UI Symbol",null,"Times New Roman"]
[null,null,8,"♜","♞","♝","♛","♚","♝","♞","♜",8,null,null,null,"Blancas","Negras","Blancas","Negras"]
[null,null,7,"♟","♟","♟","♟","♟","♟","♟","♟",7,null,null,null,"♔","♚","♔","♚"]
[null,null,6,null,null,null,null,null,null,null,null,6,null,null,null,"♕","♛","♕","♛"]
[null,null,5,null,null,null,null,null,null,null,null,5,null,null,null,"♖","♜","♖","♜"]
[null,null,4,null,null,null,null,null,null,null,null,4,null,null,null,"♗","♝","♗","♝"]
[null,null,3,null,null,null,null,null,null,null,null,3,null,null,null,"♘","♞","♘","♞"]
[null,null,2,"♙","♙","♙","♙","♙","♙","♙","♙",2,null,null,null,"♙","♟","♙","♟"]
[null,null,1,"♖","♘","♗","♕","♔","♗","♘","♖",1]
[null,null,null,"a","b","c","d","e","f","g","h"]

{"sheet":"Idiomas","index":3,"n_rows":18,"n_cols":14,"rows_kept":18,"cut":false,"hidden":false,"merged":[]}
["Español",null,"Català","Deutsche","English","Español","Esperanto","Euskal","Français","Galego","Hrvatski","Italiano","Português","Română"]
[{"$f":"INDEX(TablaIdiomas[#This Row],MATCH(Rango_Idioma,TablaIdiomas[#Headers],0))","v":"Tablero de Ajedrez con Menús Interactivos"}," ","Tauler d’escacs amb menús interactius","Schachbrett mit interaktiven Menüs","Chessboard with Interactive Menus","Tablero de Ajedrez con Menús Interactivos","Ŝako kun Interaktivaj Menusoj","Xake taula menuak elkarreraginekin","Échiquier avec menus interactifs","Táboa de xadrez con menús interactivos","Šahovska ploča s interaktivnim izbornicima","Scacchiera con menu interattivi","Tabuleiro de Xadrez com Menus Interativos","Tablă de șah cu meniuri interactive"]
[{"$f":"INDEX(TablaIdiomas[#This Row],MATCH(Rango_Idioma,TablaIdiomas[#Headers],0))","v":"(Menús diseñados con Segmentaciones de datos)"}," ","(Menús dissenyats amb Segmentacions de dades)","(Menüs mit Datensegmentierungen)","(Menus designed with slicers)","(Menús diseñados con Segmentaciones de datos)","(Menusoj projektitaj kun Segmentoj de Datumoj)","(Datuen segmentazioekin diseinatutako menuak)","(Menus conçus avec des segmentations de données)","(Menús deseñados con segmentación de datos)","(Izbornici dizajnirani pomoću segmentacija podataka)","(Menu progettati con segmentazioni dei dati)","(Menus criados com segmentações de dados)","(Meniuri proiectate cu Segmentări de date)"]
[{"$f":"INDEX(TablaIdiomas[#This Row],MATCH(Rango_Idioma,TablaIdiomas[#Headers],0))","v":"Tope"}," ","Superior","oben","Top","Tope","Supro","Top","Haut","Arriba","Vrh","Superiore","Topo","Top"]
[{"$f":"INDEX(TablaIdiomas[#This Row],MATCH(Rango_Idioma,TablaIdiomas[#Headers],0))","v":"Filas"}," ","Files","Reihen","Rows","Filas","Vicoj","Ilarak","Lignes","Filas","redovi","Righe","Linhas","rânduri"]
[{"$f":"INDEX(TablaIdiomas[#This Row],MATCH(Rango_Idioma,TablaIdiomas[#Headers],0))","v":"Columnas"}," ","Columnes","Säulen","Columns","Columnas","Kolumnoj","zutabeak","Colonnes","Columnas","Kolumne","colonne","Colunas","coloane"]
[{"$f":"INDEX(TablaIdiomas[#This Row],MATCH(Rango_Idioma,TablaIdiomas[#Headers],0))","v":"Iniciar"}," ","Iniciar","Einleiten","Initiate","Iniciar","Komencu","Hasi","Lancer","Comezar","pokrenuti","Iniziato","Iniciar","Iniţia"]
[{"$f":"INDEX(TablaIdiomas[#This Row],MATCH(Rango_Idioma,TablaIdiomas[#Headers],0))","v":"Borrar"}," ","Suprimeix","Löschen","Delete","Borrar","Forigi","Ezabatu","Supprimer","Eliminar","Izbrisati","Elimina","Excluir","Șterge"]
[{"$f":"INDEX(TablaIdiomas[#This Row],MATCH(Rango_Idioma,TablaIdiomas[#Headers],0))","v":"SI"}," ","SI","JA","YES","SI","YES","BAI","OUI","SI","DA","SÌ","SIM","DA"]
[{"$f":"INDEX(TablaIdiomas[#This Row],MATCH(Rango_Idioma,TablaIdiomas[#Headers],0))","v":"NO"}," ","NO","NEIN","NO","NO","NE","NO","NON","NON","NE","NO","NÃO","NU"]
[{"$f":"INDEX(TablaIdiomas[#This Row],MATCH(Rango_Idioma,TablaIdiomas[#Headers],0))","v":"Menu núm"}," ","Menú núm","Menünummer","Menu number","Menu núm","Menuo num","Menuaren zenbakia","Menu num","Menú num","Izbornik broj","Menu num","Menu num","Număr meniu"]
[{"$f":"INDEX(TablaIdiomas[#This Row],MATCH(Rango_Idioma,TablaIdiomas[#Headers],0))","v":"Fuente"}," ","Font","Schriftart","Font","Fuente","Tiparo","Font","Police de caractère","Fonte","krstionica","Font","Fonte","Font"]
[{"$f":"INDEX(TablaIdiomas[#This Row],MATCH(Rango_Idioma,TablaIdiomas[#Headers],0))","v":"Pieza"}," ","Peça","Stück","Piece","Pieza","Peco","Piece","Pièce","Peza","Komad","Pezzo","Peça","Bucată"]
[{"$f":"INDEX(TablaIdiomas[#This Row],MATCH(Rango_Idioma,TablaIdiomas[#Headers],0))","v":"Mover"}," ","Moure's","Bewegung","Move","Mover","Movu","Mugitu","Bouge toi","Mover","Potez","Mossa","Mover","Mișcare"]
[{"$f":"INDEX(TablaIdiomas[#This Row],MATCH(Rango_Idioma,TablaIdiomas[#Headers],0))","v":"Tablero"}," ","Tauler d'escacs","Schachbrett","Chessboard","Tablero","Ŝako","itxurako taula","Échiquier","Táboa de xadrez","šahovska tabla","Scacchiera","Tabuleiro de xadrez","Tablă de şah"]
[{"$f":"INDEX(TablaIdiomas[#This Row],MATCH(Rango_Idioma,TablaIdiomas[#Headers],0))","v":"Copiar"}," ","Còpia","Kopieren","Copy","Copiar","Kopii","Copy","Copie","Copiar","Kopirati","copia","cópia de","Copie"]
[{"$f":"INDEX(TablaIdiomas[#This Row],MATCH(Rango_Idioma,TablaIdiomas[#Headers],0))","v":"Idioma"}," ","Llenguatge","Sprache","Language","Idioma","Lingvo","Hizkuntza","Langue","Lingua","Jezik","linguaggio","Língua","Limba"]
[{"$f":"INDEX(TablaIdiomas[#This Row],MATCH(Rango_Idioma,TablaIdiomas[#Headers],0))","v":"Ocultar Excel"}," ","Amaga Excel","Excel ausblenden","Hide Excel","Ocultar Excel","Kaŝi Excel","Ezkutatu Excel","Masquer Excel","Agochar Excel","Sakrij Excel","Nascondi Excel","Ocultar Excel","Ascundeți Excel"]